bitfinex-derivatives/quotes_SOLF0:USTF0_20260210
["timestamp","ask_amount","ask_price","bid_price","bid_amount"]
[1770756452293,6.37333787,82.856,82.78,10.02198346]
[1770756452787,6.37333787,82.853,82.809,10.8742]
[1770756452984,6.37333787,82.853,82.78,10.02198346]
[1770756454694,6.37709927,82.85,82.805,10.8747]
[1770756455786,17.29903983,82.849,82.805,10.8747]
[1770756456192,6.42993983,82.848,82.805,10.8747]
[1770756456394,10.02198346,82.86,82.78,10.02198346]
[1770756456395,6.42993983,82.858,82.78,10.02198346]
[1770756457095,6.42993983,82.854,82.81,10.8741]
[1770756457589,6.42993983,82.854,82.781,96.4]
[1770756457590,6.42746063,82.851,82.8,10.8754]
[1770756457795,6.42746063,82.851,82.781,96.4]
[1770756458687,6.42746063,82.846,82.806,10.8746]
[1770756458991,6.42746063,82.839,82.806,10.8746]
[1770756459194,6.42746063,82.839,82.79,3.7335671]
[1770756460690,6.42746063,82.839,82.798,10.8756]
[1770756460994,6.42746063,82.839,82.79,3.7335671]
[1770756462583,6.42746063,82.839,82.81,10.8741]
[1770756464096,6.42746063,82.839,82.803,10.875]
[1770756464290,3.7335671,82.83,82.78,3.7335671]
[1770756464487,168.9722,82.9,82.704,169.3697]
[1770756464488,6.44227438,82.809,82.76,100.1135671]
[1770756464690,6.44227438,82.809,82.76,3.7335671]
[1770756465687,6.44227438,82.809,82.776,10.8786]
[1770756469594,6.44227438,82.809,82.76,3.7335671]
[1770756470699,6.44227438,82.809,82.775,10.8787]
[1770756471800,3.7335671,82.82,82.76,3.7335671]
[1770756472000,6.44225537,82.819,82.77,3.7335671]
[1770756472800,6.44225537,82.819,82.787,10.8771]
[1770756473602,6.44225537,82.819,82.778,10.8783]
[1770756473802,6.44225537,82.819,82.76,3.7335671]
[1770756474404,6.44225537,82.819,82.789,10.8769]
[1770756475314,6.44225537,82.819,82.77,3.7335671]
[1770756475315,6.44225537,82.819,82.797,10.8759]
[1770756475513,172.11064259,82.832,82.797,10.8759]
[1770756476108,6.45064259,82.832,82.797,10.8759]
[1770756476808,6.45064259,82.829,82.791,10.8767]
[1770756477009,6.45064259,82.829,82.78,3.73515424]
[1770756478615,6.45977657,82.824,82.786,10.8773]
[1770756478811,6.45977657,82.839,82.78,3.73515424]
[1770756479211,165.76,82.853,82.78,3.73515424]
[1770756479212,6.43944515,82.829,82.796,10.8759]
[1770756479519,165.76,82.853,82.77,3.73515424]
[1770756479520,6.43944515,82.819,82.77,3.73515424]
[1770756479811,6.43944515,82.819,82.76,3.73515424]
[1770756480016,6.43944515,82.819,82.789,10.8769]
[1770756480815,6.43944515,82.819,82.782,10.8779]
[1770756483226,36.31,82.852,82.775,10.8787]
[1770756483227,6.42428501,82.809,82.775,10.8787]
[1770756484222,6.42428501,82.806,82.763,10.8803]
[1770756484423,6.42428501,82.799,82.763,10.8803]
[1770756485227,6.42428501,82.799,82.769,10.8794]
[1770756485625,6.43242989,82.812,82.77,3.73515424]
[1770756486122,6.43242989,82.812,82.784,10.8776]
[1770756486327,3.73515424,82.82,82.784,10.8776]
[1770756486526,6.43242989,82.819,82.784,10.8776]
[1770756488426,3.73515424,82.81,82.773,10.879]
[1770756488622,3.73515424,82.81,82.76,3.73515424]
[1770756488623,6.46176671,82.809,82.76,3.73515424]
[1770756488822,3.73515424,82.81,82.76,3.73515424]
[1770756489028,10.19692095,82.82,82.778,10.8784]
[1770756489229,6.4217996,82.819,82.77,3.73515424]
[1770756489621,6.4217996,82.838,82.79,3.73515424]
[1770756489826,6.4217996,82.838,82.8,3.73515424]
[1770756490324,6.4217996,82.838,82.79,3.73515424]
[1770756490728,172.2417996,82.854,82.814,10.8736]
[1770756490927,6.4217996,82.854,82.814,10.8736]
[1770756491125,463.79565377,82.859,82.81,3.73515424]
[1770756491327,463.79565377,82.859,82.82,3.73515424]
[1770756491523,3.73515424,82.88,82.83,3.73515424]
[1770756491728,6.51375362,82.881,82.83,3.73515424]
[1770756491926,6.51375362,82.879,82.83,3.73515424]
[1770756492128,6.51375362,82.879,82.846,10.8694]
[1770756493438,6.51375362,82.879,82.83,3.73515424]
[1770756494740,6.51375362,82.879,82.845,10.8695]
[1770756494934,10.18985341,82.86,82.81,3.73515424]
[1770756495642,10.18985341,82.86,82.768,22.63900335]
[1770756495643,6.45469917,82.849,82.818,10.8731]
[1770756496138,6.45469917,82.849,82.806,10.8746]
[1770756496640,6.45469917,82.859,82.81,3.73515424]
[1770756496850,6.45469917,82.849,82.787,96.38]
[1770756497136,6.45469917,82.849,82.778,21.7566]
[1770756497840,6.45469917,82.849,82.805,10.8748]
[1770756498443,6.45469917,82.849,82.811,10.8739]
[1770756498734,6.40601459,82.863,82.79,9.9998023]
[1770756499140,6.40601459,82.863,82.826,10.872]
[1770756500038,6.40601459,82.863,82.818,10.8731]
[1770756501045,6.4518081,82.86,82.81,10.8741]
[1770756501338,6.4518081,82.86,82.79,106.3798023]
[1770756502547,6.4518081,82.86,82.808,10.8743]
[1770756502844,6.4518081,82.86,82.79,96.38]
[1770756503142,6.4518081,82.86,82.804,10.8749]
[1770756504036,6.45581289,82.857,82.79,106.3798023]
[1770756504436,14.69111653,82.901,82.79,106.3798023]
[1770756504437,6.45581289,82.873,82.81,9.9998023]
[1770756504841,6.45581289,82.873,82.81,9.99177109]
[1770756506047,6.45581289,82.873,82.836,10.8707]
[1770756507453,8.84121157,82.902,82.83,9.99177109]
[1770756507642,9.99177109,82.93,82.83,106.35177109]
[1770756507643,6.48449449,82.901,82.83,106.35177109]
[1770756508041,6.48449449,82.901,82.857,10.868]
[1770756509848,6.53138832,82.898,82.857,10.868]
[1770756510050,6.53138832,82.898,82.85,10.8689]
[1770756510549,6.53138832,82.888,82.848,10.8691]
[1770756512045,6.53138832,82.888,82.841,10.8701]
[1770756512851,6.53075956,82.885,82.841,10.8701]
[1770756513053,6.53075956,82.885,82.847,10.8692]
[1770756515050,6.53075956,82.885,82.81,9.99177109]
[1770756515656,6.51689873,82.879,82.81,9.99177109]
[1770756516352,10.8656,82.876,82.83,10.8715]
[1770756516558,9.99177109,82.89,82.8,96.34]
[1770756516559,6.51689873,82.875,82.8,96.34]
[1770756516958,6.51689873,82.865,82.822,10.8726]
[1770756517856,6.49147695,82.855,82.813,10.8737]
[1770756518057,6.49147695,82.855,82.79,9.99177109]
[1770756519458,6.49147695,82.855,82.821,10.8726]
[1770756519660,8.82810979,82.88,82.79,9.99177109]
[1770756519661,6.417233,82.868,82.79,9.99177109]
[1770756520558,6.417233,82.865,82.825,10.8721]
[1770756522060,6.43143258,82.862,82.818,10.8731]
[1770756522259,6.43143258,82.862,82.793,21.7528]
[1770756523358,6.4241396,82.874,82.81,9.99177109]
[1770756523964,6.4241396,82.866,82.802,96.34]
[1770756524466,17.2893396,82.879,82.81,9.99177109]
[1770756524762,6.4241396,82.878,82.81,9.99177109]
[1770756525557,6.40921853,82.887,82.811,21.7481]
[1770756525753,6.40921853,82.887,82.811,96.34]
[1770756526861,10.8627,82.898,82.86,10.8675]
[1770756527062,17.29109066,82.898,82.86,10.8675]
[1770756527462,6.42839066,82.897,82.86,10.8675]
[1770756527664,6.42839066,82.891,82.853,10.8685]
[1770756528866,36.31,82.918,82.81,9.99177109]
[1770756528867,6.42839066,82.886,82.812,96.34]
[1770756529361,6.42839066,82.886,82.81,9.99177109]
[1770756529362,6.370169,82.869,82.826,10.872]
[1770756529759,6.370169,82.869,82.802,96.34]
[1770756530265,6.37001634,82.867,82.802,96.34]
[1770756531260,6.37001634,82.867,82.795,21.7521]
[1770756531663,6.3227836,82.861,82.795,21.7521]
[1770756532267,6.3227836,82.861,82.825,10.8721]
[1770756533258,11.0737453,82.881,82.838,10.8705]
[1770756533259,8.82810979,82.88,82.838,10.8705]
[1770756533569,6.32202806,82.879,82.838,10.8705]
[1770756534763,6.32202806,82.878,82.838,10.8705]
[1770756534963,6.32202806,82.878,82.824,10.8722]
[1770756535165,6.34262513,82.876,82.79,9.99177109]
[1770756535366,6.34262513,82.858,82.791,96.34]
[1770756536168,6.34262513,82.858,82.823,10.8724]
[1770756536369,6.34262513,82.856,82.791,96.34]
[1770756536668,8.82810979,82.855,82.791,96.34]
[1770756536866,6.34262513,82.849,82.809,10.8742]
[1770756540173,8.82810979,82.867,82.83,10.8714]
[1770756540477,8.82810979,82.867,82.8,9.99947616]
[1770756540478,6.28612558,82.866,82.8,9.99947616]
[1770756540871,6.28612558,82.862,82.794,96.36]
[1770756541179,6.28612558,82.862,82.78,9.99947616]
[1770756541180,6.28612558,82.86,82.78,9.99947616]
[1770756541378,6.30172497,82.858,82.78,9.99947616]
[1770756541579,6.30172497,82.856,82.78,9.99947616]
[1770756542882,10.8668,82.867,82.78,9.99947616]
[1770756543074,6.36930403,82.867,82.78,9.99947616]
[1770756543583,6.36930403,82.861,82.824,10.8722]
[1770756547787,6.34406183,82.858,82.789,21.7539]
[1770756549588,10.8684,82.854,82.815,10.8735]
[1770756549892,6.32373281,82.853,82.815,10.8735]
[1770756550090,6.32373281,82.853,82.789,21.7539]
[1770756550397,6.32373281,82.853,82.818,10.8731]
[1770756551998,6.32373281,82.853,82.789,118.1139]
[1770756551999,6.33709843,82.849,82.81,10.8741]
[1770756552593,6.33709843,82.847,82.754,21.7631]
[1770756552799,9.99918896,82.85,82.754,21.7631]
[1770756552800,6.33709843,82.842,82.754,21.7631]
[1770756552997,6.33076746,82.829,82.754,21.7631]
[1770756553298,6.33076746,82.817,82.751,96.36]
[1770756553500,6.33076746,82.809,82.72,9.99918896]
[1770756553696,6.33076746,82.802,82.72,9.99918896]
[1770756553896,6.33076746,82.802,82.721,21.7718]
[1770756554104,6.33076746,82.802,82.72,9.99918896]
[1770756554295,6.33076746,82.787,82.736,10.8838]
[1770756554902,6.33076746,82.787,82.713,96.36]
[1770756554903,6.33076746,82.784,82.713,96.36]
[1770756555402,6.33076746,82.784,82.739,10.8835]
[1770756556604,6.33076746,82.784,82.713,96.36]
[1770756557805,6.29891629,82.779,82.731,10.8844]
[1770756558301,6.29891629,82.779,82.68,9.99918896]
[1770756558302,6.29891629,82.769,82.68,9.99918896]
[1770756558506,6.29891629,82.769,82.686,96.38]
[1770756559201,36.31,82.789,82.686,96.38]
[1770756559202,6.29891629,82.76,82.686,96.38]
[1770756559706,6.29891629,82.76,82.708,10.8876]
[1770756562608,6.29891629,82.76,82.686,96.38]
[1770756562609,6.27671364,82.774,82.721,10.8859]
[1770756563709,6.19542952,82.769,82.721,10.8859]
[1770756565512,17.09504562,82.763,82.71,10.8873]
[1770756565813,6.21454562,82.762,82.71,10.8873]
[1770756566410,6.21454562,82.762,82.686,96.38]
[1770756567717,6.21454562,82.762,82.72,10.8859]
[1770756568211,6.21454562,82.762,82.686,96.38]
[1770756569215,6.21567297,82.749,82.66,9.99918896]
[1770756569516,6.21567297,82.749,82.68,9.99918896]
[1770756569716,6.21567297,82.749,82.707,10.8877]
[1770756571014,6.21567297,82.749,82.68,9.99918896]
[1770756572312,6.21567297,82.749,82.681,96.46]
[1770756572620,6.19680065,82.747,82.706,10.8877]
[1770756573022,6.19680065,82.729,82.681,96.46]
[1770756574023,6.18333518,82.719,82.665,96.46]
[1770756574328,6.18333518,82.719,82.67,3.74326601]
[1770756574823,6.18333518,82.719,82.665,96.46]
[1770756575721,6.18333518,82.719,82.68,10.8912]
[1770756576118,6.18333518,82.719,82.665,96.46]
[1770756576820,6.20105548,82.716,82.671,10.8924]
[1770756577320,6.20105548,82.716,82.65,96.46]
[1770756578722,6.20105548,82.716,82.681,10.8911]
[1770756579428,6.20105548,82.716,82.673,10.8922]
[1770756580925,6.20105548,82.716,82.679,10.8913]
[1770756581135,6.20105548,82.716,82.65,96.46]
[1770756581830,6.20105548,82.716,82.677,10.8916]
[1770756583827,6.20357559,82.714,82.67,10.8925]
[1770756584029,6.20357559,82.714,82.65,96.46]
[1770756584732,6.20357559,82.708,82.662,10.8936]
[1770756585535,10.03008601,82.72,82.622,21.7977]
[1770756585536,6.19709377,82.698,82.655,10.8946]
[1770756586736,17.08639377,82.696,82.655,10.8946]
[1770756587134,17.08639377,82.696,82.624,96.5]
[1770756587135,6.15415449,82.719,82.64,10.03008601]
[1770756587334,10.8875,82.709,82.64,10.03008601]
[1770756587736,10.8875,82.709,82.66,10.8938]
[1770756587937,6.15415449,82.706,82.66,10.8938]
[1770756588134,6.15415449,82.706,82.64,10.03008601]
[1770756588332,6.15415449,82.706,82.659,10.894]
[1770756589333,6.17727722,82.697,82.624,96.5]
[1770756589532,6.17727722,82.697,82.602,96.52]
[1770756589738,6.17727722,82.676,82.634,10.8973]
[1770756589930,6.17727722,82.699,82.62,10.03008601]
[1770756590839,6.17730425,82.69,82.647,10.8956]
[1770756591939,6.19369432,82.686,82.647,10.8956]
[1770756594634,10.8891,82.697,82.622,21.7979]
[1770756594834,6.21412917,82.699,82.622,21.7979]
[1770756595643,6.22448407,82.69,82.62,10.03008601]
[1770756596437,6.22448407,82.69,82.61,96.54]
[1770756596438,11.0737453,82.735,82.64,10.03008601]
[1770756596639,21.7652,82.747,82.66,10.03008601]
[1770756596640,6.22448407,82.734,82.66,10.03008601]
[1770756596841,3.74416256,82.73,82.68,3.74416256]
[1770756597235,6.21989993,82.729,82.68,3.74416256]
[1770756598738,10.8851,82.728,82.689,10.8901]
[1770756598944,6.21989993,82.729,82.68,3.74393736]
[1770756599240,6.21989993,82.729,82.67,3.74393736]
[1770756599444,10.8858,82.722,82.68,3.74393736]
[1770756599942,17.10479993,82.729,82.682,10.891]
[1770756600142,6.21989993,82.729,82.69,3.74393736]
[1770756600343,6.21989993,82.729,82.62,266.0817]
[1770756600344,4.38148773,82.699,82.64,3.74393736]
[1770756600538,11.12428461,82.751,82.593,169.5982]
[1770756600539,3.74393736,82.71,82.66,3.74393736]
[1770756600738,14.69111653,82.762,82.609,169.5647]
[1770756600739,4.38148773,82.727,82.67,3.74393736]
[1770756600941,10.8837,82.738,82.69,3.74393736]
[1770756601145,3.74393736,82.74,82.69,3.74393736]
[1770756601146,4.38148773,82.739,82.69,3.74393736]
[1770756601340,4.38148773,82.739,82.68,3.74393736]
[1770756601541,3.74393736,82.73,82.68,3.74393736]
[1770756601737,4.39609012,82.719,82.66,3.74393736]
[1770756601937,4.39609012,82.709,82.66,3.74393736]
[1770756602743,4.39609012,82.679,82.578,22.63900335]
[1770756603043,10.8924,82.672,82.625,10.8985]
[1770756603244,8.41565273,82.67,82.625,10.8985]
[1770756603842,4.67171537,82.659,82.617,10.8995]
[1770756604044,4.67171537,82.659,82.592,96.54]
[1770756604240,19.31105273,82.65,82.603,10.9014]
[1770756604447,3.74393736,82.65,82.6,3.74393736]
[1770756604838,3.74393736,82.64,82.598,10.902]
[1770756605147,44.98404274,82.682,82.59,3.74393736]
[1770756605148,4.67171537,82.665,82.59,10.04986676]
[1770756605647,10.8936,82.663,82.617,10.8995]
[1770756605849,4.62043854,82.662,82.577,96.54]
[1770756606348,4.62043854,82.654,82.577,96.54]
[1770756606850,4.62043854,82.659,82.596,10.9023]
[1770756607245,4.62043854,82.659,82.57,10.04986676]
[1770756607246,4.62043854,82.659,82.579,96.56]
[1770756607543,4.62043854,82.659,82.59,10.04986676]
[1770756607751,4.58782843,82.679,82.59,10.04986676]
[1770756608447,4.58782843,82.679,82.627,10.8981]
[1770756609249,4.59322629,82.677,82.617,10.8995]
[1770756609451,4.59322629,82.677,82.591,96.56]
[1770756609952,4.59322629,82.659,82.607,10.9009]
[1770756610343,4.59322629,82.659,82.591,96.56]
[1770756610544,4.59322629,82.64,82.552,21.8162]
[1770756610743,4.59322629,82.64,82.554,96.56]
[1770756611257,4.5881674,82.622,82.554,96.56]
[1770756611857,4.5881674,82.638,82.54,10.04986676]
[1770756612952,4.5881674,82.631,82.585,10.9037]
[1770756613553,4.56754739,82.629,82.576,10.9049]
[1770756614046,4.56754739,82.629,82.54,10.04986676]
[1770756614754,10.8982,82.628,82.575,10.905]
[1770756614946,4.56754739,82.627,82.575,10.905]
[1770756616647,4.56754739,82.627,82.583,10.904]
[1770756617748,4.56754739,82.627,82.59,10.9031]
[1770756618742,10.04986676,82.64,82.598,10.9021]
[1770756618938,4.62971404,82.641,82.56,10.04986676]
[1770756619348,4.64102508,82.632,82.584,10.9039]
[1770756619555,4.64102508,82.632,82.56,10.04986676]
[1770756619755,4.64102508,82.649,82.56,10.04986676]
[1770756620654,36.35,82.675,82.56,10.04986676]
[1770756620655,4.64106267,82.663,82.58,10.04986676]
[1770756621152,15.53456267,82.663,82.619,10.8992]
[1770756621550,4.65030095,82.688,82.603,96.6]
[1770756621754,4.65030095,82.679,82.627,10.8983]
[1770756622454,4.65030095,82.671,82.627,10.8983]
[1770756623552,4.65030095,82.671,82.603,96.6]
[1770756623553,10.8913,82.68,82.634,10.8973]
[1770756623754,4.68146223,82.685,82.603,96.6]
[1770756623949,4.68146223,82.701,82.62,10.04986676]
[1770756624250,4.68146223,82.697,82.62,10.04986676]
[1770756625059,4.68146223,82.715,82.64,10.04986676]
[1770756625356,4.68146223,82.715,82.641,96.6]
[1770756625748,4.66262666,82.713,82.668,10.8928]
[1770756626649,4.66262666,82.709,82.625,96.6]
[1770756626845,4.66262666,82.709,82.624,96.6]
[1770756627251,4.6342638,82.688,82.641,10.8963]
[1770756628748,10.8904,82.687,82.641,10.8963]
[1770756629144,4.58449744,82.703,82.65,10.8951]
[1770756629354,4.58449744,82.703,82.62,10.04986676]
[1770756629555,4.58449744,82.703,82.621,96.58]
[1770756631154,4.60993785,82.719,82.64,10.04986676]
[1770756631354,4.60993785,82.749,82.64,10.04986676]
[1770756631551,4.60993785,82.749,82.672,10.8922]
[1770756631749,10.04986676,82.75,82.672,10.8922]
[1770756631750,4.60993785,82.728,82.672,10.8922]
[1770756632055,4.60993785,82.728,82.655,96.58]
[1770756632858,4.60993785,82.728,82.679,10.8913]
[1770756634458,4.61222106,82.726,82.679,10.8913]
[1770756635453,4.61222106,82.726,82.641,21.7929]
[1770756635658,4.61491904,82.74,82.66,106.60986676]
[1770756636257,4.61491904,82.74,82.66,10.04986676]
[1770756636459,4.61491904,82.74,82.661,96.56]
[1770756636655,4.61491904,82.74,82.657,96.56]
[1770756636957,4.61491904,82.74,82.658,96.56]
[1770756637155,4.54839738,82.723,82.658,96.56]
[1770756637660,4.54839738,82.723,82.64,21.793]
[1770756637853,4.54839738,82.708,82.63,10.04986676]
[1770756638048,4.54839738,82.708,82.63,106.60986676]
[1770756638249,10.8894,82.695,82.646,10.8957]
[1770756638548,10.8894,82.695,82.62,21.7983]
[1770756638549,4.54839738,82.694,82.626,96.54]
[1770756638754,8.60110914,82.725,82.62,21.7983]
[1770756638755,10.04986676,82.74,82.651,3.78202752]
[1770756639857,10.8852,82.727,82.679,10.8913]
[1770756640253,10.8862,82.719,82.671,10.8924]
[1770756640759,3.81915681,82.718,82.671,10.8924]
[1770756640960,3.81915681,82.714,82.671,10.8924]
[1770756641454,3.81915681,82.714,82.678,10.8915]
[1770756641654,3.81915681,82.714,82.656,3.88761522]
[1770756642854,3.81915681,82.711,82.642,3.78283191]
[1770756643854,36.35,82.719,82.647,10.8956]
[1770756643855,3.81915681,82.696,82.647,10.8956]
[1770756644060,3.81915681,82.696,82.642,3.78283191]
[1770756645663,3.81915681,82.674,82.63,10.8978]
[1770756646856,10.8923,82.673,82.63,10.8978]
[1770756647654,3.81915681,82.674,82.636,10.8969]
[1770756648053,10.8912,82.681,82.636,10.8969]
[1770756648258,10.8906,82.686,82.643,3.9257349]
[1770756649764,3.98507262,82.68,82.634,10.8973]
[1770756650961,4.10194282,82.677,82.612,3.92980608]
[1770756652357,4.10194282,82.67,82.625,10.8985]
[1770756652859,4.10194282,82.686,82.626,3.9213851]
[1770756653855,10.8913,82.68,82.636,10.8971]
[1770756654164,4.10194282,82.679,82.626,3.9213851]
[1770756654563,4.10194282,82.679,82.635,10.8971]
[1770756655266,14.99344282,82.679,82.638,10.8968]
[1770756655666,10.04986676,82.69,82.638,10.8968]
[1770756655667,10.04986676,82.69,82.638,3.93375615]
[1770756655865,4.10194282,82.694,82.652,10.8949]
[1770756657374,10.8898,82.692,82.652,10.8949]
[1770756658374,4.10194282,82.691,82.642,10.8962]
[1770756659764,10.8903,82.688,82.642,10.8962]
[1770756659965,10.8903,82.688,82.648,10.8954]
[1770756660261,4.10194282,82.705,82.649,3.87234419]
[1770756661663,10.8892,82.697,82.653,10.8948]
[1770756661967,10.8892,82.697,82.603,96.56]
[1770756661968,4.10194282,82.718,82.654,3.87060982]
[1770756662783,10.8879,82.706,82.667,10.8929]
[1770756664174,10.8882,82.703,82.66,10.8938]
[1770756664876,10.8882,82.703,82.666,10.8931]
[1770756665076,10.8882,82.703,82.654,3.87060982]
[1770756665578,4.10194282,82.705,82.665,10.8932]
[1770756666572,4.10194282,82.723,82.672,3.83999093]
[1770756667272,4.10194282,82.713,82.641,3.82476768]
[1770756668686,10.8883,82.703,82.665,10.8931]
[1770756669169,10.8883,82.703,82.654,3.82476768]
[1770756669971,14.98934282,82.71,82.654,3.82476768]
[1770756670175,4.10194282,82.709,82.654,3.82476768]
[1770756671582,10.8883,82.703,82.667,10.893]
[1770756671780,14.99024282,82.703,82.654,3.82476768]
[1770756672284,4.10194282,82.703,82.666,10.8931]
[1770756672889,4.10194282,82.701,82.659,10.894]
[1770756673687,10.8889,82.699,82.659,10.894]
[1770756674681,14.99084282,82.699,82.659,10.894]
[1770756675582,4.10194282,82.698,82.659,10.894]
[1770756676785,10.8879,82.706,82.665,4.0005965]
[1770756677382,3.74677344,82.7,82.665,4.0005965]
[1770756677984,10.8879,82.706,82.665,4.0005965]
[1770756678488,10.8879,82.706,82.666,10.893]
[1770756678789,10.8886,82.701,82.666,10.893]
[1770756680097,4.10194282,82.706,82.666,10.893]
[1770756681586,4.10194282,82.706,82.673,10.8921]
[1770756681991,7.79806777,82.72,82.674,3.82002123]
[1770756682190,10.8868,82.714,82.674,3.82002123]
[1770756684193,3.74610914,82.71,82.674,3.82002123]
[1770756684392,3.85504918,82.709,82.669,10.8927]
[1770756689491,3.85504918,82.709,82.627,22.63900335]
[1770756689492,3.74610914,82.68,82.632,3.95043469]
[1770756690401,3.74610914,82.72,82.661,3.95043469]
[1770756690896,3.85504918,82.719,82.661,3.95043469]
[1770756691692,10.8871,82.712,82.671,10.8923]
[1770756691894,3.74610914,82.71,82.671,10.8923]
[1770756692700,10.8876,82.708,82.671,10.8923]
[1770756695602,3.74610914,82.71,82.671,10.8923]
[1770756695802,10.8867,82.715,82.677,10.8917]
[1770756696199,3.85504918,82.714,82.661,3.95043469]
[1770756696400,3.74610914,82.68,82.634,3.95043469]
[1770756696605,3.85504918,82.679,82.621,3.95043469]
[1770756696904,3.74610914,82.67,82.621,3.95043469]
[1770756697104,3.85504918,82.679,82.621,3.95043469]
[1770756697704,3.85504918,82.679,82.636,10.897]
[1770756699115,3.85504918,82.679,82.636,14.84743469]
[1770756700514,3.85504918,82.679,82.638,10.8967]
[1770756705020,3.74610914,82.66,82.624,3.95043469]
[1770756705228,7.60115832,82.66,82.624,3.95043469]
[1770756706021,3.74610914,82.65,82.624,3.95043469]
[1770756706319,3.74610914,82.65,82.612,3.95043469]
[1770756706510,3.74610914,82.64,82.612,3.95043469]
[1770756707424,3.74610914,82.63,82.598,3.95043469]
[1770756708624,3.74610914,82.63,82.598,14.85253469]
[1770756710932,3.74610914,82.63,82.598,3.95043469]
[1770756711226,3.74610914,82.62,82.582,3.85382633]
[1770756714631,3.9018913,82.619,82.582,3.85382633]
[1770756714823,3.9018913,82.619,82.579,10.9046]
[1770756716828,3.9018913,82.632,82.589,3.85382633]
[1770756717130,3.74610914,82.64,82.589,3.85382633]
[1770756717321,3.9018913,82.639,82.589,3.85382633]
[1770756718733,10.897,82.637,82.591,10.9029]
[1770756718932,10.897,82.637,82.591,14.75672633]
[1770756719535,3.9018913,82.636,82.591,14.75672633]
[1770756719736,3.9018913,82.636,82.592,3.85382633]
[1770756720627,3.74610914,82.64,82.595,3.85382633]
[1770756720823,3.74610914,82.64,82.59,3.74610914]
[1770756720824,10.8956,82.648,82.601,3.85382633]
[1770756721232,10.8956,82.648,82.602,3.85382633]
[1770756722736,10.8956,82.648,82.604,3.85382633]
[1770756724436,36.35,82.668,82.591,3.85382633]
[1770756724437,3.75102347,82.63,82.591,3.85382633]
[1770756724634,7.65291477,82.63,82.591,3.85382633]
[1770756725034,3.9018913,82.63,82.591,3.85382633]
[1770756725332,3.75102347,82.61,82.58,3.85382633]
[1770756725636,3.9018913,82.629,82.581,3.85382633]
[1770756726729,7.65291477,82.62,82.581,3.85382633]
[1770756727333,3.75102347,82.61,82.576,10.9049]
[1770756728133,3.9018913,82.616,82.582,10.9042]
[1770756730339,3.75102347,82.6,82.555,3.85382633]
[1770756730537,3.75102347,82.62,82.561,3.85382633]
[1770756730837,3.75102347,82.62,82.577,3.85382633]
[1770756731836,3.75102347,82.62,82.58,10.9044]
[1770756732136,3.75102347,82.62,82.58,14.75822633]
[1770756732337,10.8994,82.619,82.58,14.75822633]
[1770756732737,3.75102347,82.62,82.58,14.75822633]
[1770756734338,3.9018913,82.629,82.571,3.85382633]
[1770756734643,7.65291477,82.62,82.571,3.85382633]
[1770756735242,3.9018913,82.609,82.571,3.85382633]
[1770756735437,3.9018913,82.609,82.55,3.75102347]
[1770756735438,3.75102347,82.6,82.558,3.85382633]
[1770756735833,3.9018913,82.599,82.558,3.85382633]
[1770756736036,3.75102347,82.59,82.558,3.85382633]
[1770756736742,3.75102347,82.59,82.56,10.9071]
[1770756737538,14.8038913,82.599,82.56,10.9071]
[1770756738346,14.8038913,82.599,82.563,10.9067]
[1770756739445,3.75102347,82.61,82.57,3.85382633]
[1770756740347,7.84244896,82.63,82.582,4.08291136]
[1770756740942,4.09142549,82.63,82.582,4.08291136]
[1770756741949,4.09142549,82.63,82.589,14.98611136]
[1770756742150,7.84244896,82.63,82.589,14.98611136]
[1770756742445,7.84244896,82.63,82.59,4.08291136]
[1770756744046,3.75102347,82.61,82.564,3.76327203]
[1770756744249,3.88134019,82.599,82.549,3.76327203]
[1770756745049,3.75102347,82.59,82.549,3.76327203]
[1770756745748,3.75102347,82.59,82.551,3.76327203]
[1770756746244,3.75102347,82.59,82.523,328.43482713]
[1770756746245,3.75102347,82.57,82.537,3.76327203]
[1770756747352,3.88134019,82.579,82.537,3.76327203]
[1770756751254,3.75760103,82.59,82.54,3.75760103]
[1770756751460,3.88134019,82.579,82.527,3.76327203]
[1770756751754,3.75760103,82.57,82.527,3.76327203]
[1770756752848,3.75760103,82.57,82.533,10.9106]
[1770756753357,3.88134019,82.569,82.527,3.76327203]
[1770756753651,3.75760103,82.56,82.527,3.76327203]
[1770756754556,3.88134019,82.569,82.528,10.9113]
[1770756755148,3.88134019,82.569,82.529,3.76327203]
[1770756759460,3.75760103,82.58,82.536,3.76327203]
[1770756760161,10.9047,82.579,82.536,3.76327203]
[1770756760462,7.63894122,82.56,82.511,3.76327203]